[Event "Championship of RSO-Alania 2020"]
[Site "Vladikavkaz, Russia"]
[Date "2021.01.04"]
[Round "4.3"]
[White "Agkatsev, Felix A"]
[Black "Tsamalaidze, Liana"]
[Result "1-0"]
[TimeControl "90+30"]
[WhiteElo "1338"]
[BlackElo "1446"]

1. d4 {[%emt 00:13:00]} Nf6 {[%emt 00:00:12]} 2. c4 {[%emt 00:00:08]} g6 {[%emt
00:00:06]} 3. Nc3 {[%emt 00:00:05]} Bg7 {[%emt 00:00:09]} 4. e4 {[%emt
00:00:04]} d6 {[%emt 00:00:04]} 5. f3 {[%emt 00:00:02]} O-O {[%emt 00:00:06]} 6.
Be3 e5 {[%emt 00:00:26]} 7. d5 {[%emt 00:00:06]} c6 {[%emt 00:00:23]} 8. Qd2
{[%emt 00:00:30]} cxd5 {[%emt 00:00:32]} 9. cxd5 {[%emt 00:00:44]} Re8 {[%emt
00:00:57]} 10. Bb5 {[%emt 00:02:21]} Nbd7 {[%emt 00:00:26]} 11. Nge2 {[%emt
00:01:03]} a6 {[%emt 00:00:09]} 12. Bd3 {[%emt 00:02:22]} b5 {[%emt 00:13:10]}
13. O-O {[%emt 00:02:01]} Nc5 {[%emt 00:08:24]} 14. Bc2 {[%emt 00:03:24]} Bb7
{[%emt 00:01:12]} 15. Nc1 {[%emt 00:03:48]} Rc8 {[%emt 00:00:35]} 16. Nd3
{[%emt 00:00:37]} Nfd7 {[%emt 00:02:17]} 17. Rac1 {[%emt 00:04:59]} Qe7 {[%emt
00:08:36]} 18. b4 {[%emt 00:17:14]} Nxd3 {[%emt 00:00:14]} 19. Bxd3 Rc7 {[%emt
00:25:31]} 20. a4 {[%emt 00:00:37]} bxa4 {[%emt 00:00:24]} 21. Nxa4 {[%emt
00:00:01]} Rec8 {[%emt 00:00:23]} 22. Nb6 {[%emt 00:01:03]} Nxb6 {[%emt
00:00:50]} 23. Bxb6 {[%emt 00:00:03]} Rxc1 {[%emt 00:00:31]} 24. Rxc1 Qd7
{[%emt 00:00:38]} 25. Rc3 {[%emt 00:02:14]} Bf6 {[%emt 00:03:53]} 26. Qc2
{[%emt 00:01:06]} Bd8 {[%emt 00:04:28]} 27. Rxc8 {[%emt 00:02:19]} Bxc8 {[%emt
00:00:24]} 28. Bxd8 {[%emt 00:00:28]} Qxd8 {[%emt 00:00:06]} 29. Qc6 {[%emt
00:01:10]} Qd7 {[%emt 00:02:15]} 30. Qb6 {[%emt 00:00:25]} Kg7 {[%emt
00:04:38]} 31. Bxa6 {[%emt 00:04:51]} Bxa6 {[%emt 00:05:38]} 32. Qxa6 {[%emt
00:00:01]} Qc7 33. Qa3 {[%emt 00:03:09]} Qc2 {[%emt 00:00:49]} 34. Qa1 {[%emt
00:08:08]} Qc4 {[%emt 00:01:05]} 35. Qb2 {[%emt 00:04:11]} Qb5 {[%emt
00:00:39]} 36. h4 {[%emt 00:02:50]} Qb6+ {[%emt 00:00:20]} 37. Kh2 {[%emt
00:00:10]} Qd8 {[%emt 00:00:06]} 38. Kg3 {[%emt 00:01:21]} g5 {[%emt 00:02:54]}
39. hxg5 {[%emt 00:00:02]} Qxg5+ {[%emt 00:00:06]} 40. Kf2 {[%emt 00:00:02]}
Qh4+ {[%emt 00:00:11]} 41. Ke2 {[%emt 00:00:59]} Qh1 {[%emt 00:00:07]} 42. Kd3
{[%emt 00:00:29]} Qf1+ {[%emt 00:00:14]} 43. Kc3 {[%emt 00:00:18]} Qe1+ {[%emt
00:00:35]} 44. Qd2 {[%emt 00:05:34]} Qa1+ {[%emt 00:00:06]} 45. Kc4 {[%emt
00:01:44]} Qa6+ {[%emt 00:00:13]} 46. Kb3 {[%emt 00:00:08]} Kg6 {[%emt
00:00:49]} 47. Qc2 {[%emt 00:00:50]} Qb6 {[%emt 00:00:33]} 48. Qc6 {[%emt
00:00:16]} Qe3+ {[%emt 00:00:17]} 49. Ka4 {[%clk 00:30:42]} {[%emt 00:00:03]}
Qa7+ {[%clk 00:17:39]} {[%emt 00:00:52]} 50. Kb5 {[%clk 00:28:45]} {[%emt
00:02:27]} Qb8+ {[%clk 00:18:02]} {[%emt 00:00:06]} 51. Qb6 {[%clk 00:28:56]}
{[%emt 00:00:19]} Qe8+ {[%clk 00:18:20]} {[%emt 00:00:12]} 52. Qc6 {[%clk
00:28:44]} {[%emt 00:00:42]} Qb8+ {[%clk 00:18:44]} {[%emt 00:00:05]} 53. Kc4
{[%clk 00:28:54]} {[%emt 00:00:20]} Kg5 {[%clk 00:19:08]} {[%emt 00:00:05]} 54.
Qd7 {[%clk 00:27:59]} {[%emt 00:01:26]} Kf4 {[%clk 00:18:44]} {[%emt 00:00:54]}
55. b5 {[%clk 00:22:15]} {[%emt 00:06:14]} Qb6 {[%clk 00:18:44]} {[%emt
00:00:30]} 56. Qc6 {[%clk 00:21:37]} {[%emt 00:01:08]} Qd4+ {[%clk 00:18:15]}
{[%emt 00:01:00]} 57. Kb3 {[%clk 00:22:05]} Qe3+ {[%clk 00:17:45]} {[%emt
00:01:00]} 58. Ka4 {[%clk 00:16:21]} {[%emt 00:06:14]} Qa7+ {[%clk 00:18:08]}
{[%emt 00:00:08]} 59. Kb4 {[%clk 00:16:45]} {[%emt 00:00:06]} Qd4+ {[%clk
00:18:32]} {[%emt 00:00:05]} 60. Ka5 {[%clk 00:17:05]} {[%emt 00:00:09]} Qa7+
{[%clk 00:18:57]} {[%emt 00:00:06]} 61. Qa6 {[%clk 00:16:53]} {[%emt 00:00:42]}
Qc5 {[%clk 00:19:22]} {[%emt 00:00:05]} 62. Qc6 {[%clk 00:16:08]} {[%emt
00:01:16]} Qa7+ {[%clk 00:19:47]} {[%emt 00:00:05]} 63. Kb4 {[%clk 00:16:37]}
Qd4+ {[%clk 00:20:06]} {[%emt 00:00:11]} 64. Qc4 {[%clk 00:15:32]} {[%emt
00:01:35]} Qb6 {[%clk 00:17:47]} {[%emt 00:02:49]} 65. Qc3 {[%clk 00:11:46]}
{[%emt 00:04:17]} h6 {[%clk 00:16:37]} {[%emt 00:01:40]} 66. g3 {[%clk
00:06:41]} {[%emt 00:05:35]} Kxg3 {[%clk 00:16:29]} {[%emt 00:00:37]} 67. Qe1+
{[%clk 00:07:09]} {[%emt 00:00:01]} Kxf3 {[%clk 00:16:25]} {[%emt 00:00:35]} 68.
Qh1+ {[%clk 00:05:48]} {[%emt 00:01:51]} Kf4 {[%clk 00:16:41]} {[%emt
00:00:14]} 69. Qxh6 {[%clk 00:06:03]} {[%emt 00:00:16]} Kxe4 {[%clk 00:16:50]}
{[%emt 00:00:21]} 70. Qh4 {[%clk 00:05:56]} {[%emt 00:00:36]} Kf5 {[%clk
00:14:45]} {[%emt 00:02:35]} 71. Qh5+ {[%clk 00:05:41]} {[%emt 00:00:45]} Kf6
{[%clk 00:14:56]} {[%emt 00:00:18]} 72. Qh4+ {[%clk 00:05:54]} {[%emt
00:00:18]} Kg6 {[%clk 00:14:48]} {[%emt 00:00:36]} 73. Qg4+ {[%clk 00:06:02]}
{[%emt 00:00:24]} Kf6 {[%clk 00:15:12]} {[%emt 00:00:07]} 74. Qh4+ {[%clk
00:04:25]} {[%emt 00:02:03]} Kg7 {[%clk 00:13:23]} {[%emt 00:02:21]} 75. Qg4+
{[%clk 00:04:31]} {[%emt 00:00:21]} Kf8 {[%clk 00:13:45]} {[%emt 00:00:11]} 76.
Qd7 {[%clk 00:03:57]} {[%emt 00:01:05]} e4 {[%clk 00:13:00]} {[%emt 00:01:15]}
77. Qc6 {[%clk 00:03:31]} {[%emt 00:00:55]} Qd4+ {[%clk 00:10:14]} {[%emt
00:03:16]} 78. Ka5 {[%clk 00:03:48]} {[%emt 00:00:13]} Qa7+ {[%clk 00:10:39]}
{[%emt 00:00:05]} 79. Kb4 {[%clk 00:04:09]} {[%emt 00:00:10]} Qd4+ {[%clk
00:07:48]} {[%emt 00:03:20]} 80. Ka5 {[%clk 00:04:17]} {[%emt 00:00:22]} Qa1+
{[%clk 00:01:56]} {[%emt 00:06:21]} 81. Kb6 {[%clk 00:04:41]} {[%emt 00:00:07]}
Qa3 {[%clk 00:02:18]} {[%emt 00:00:08]} 82. Qc8+ {[%clk 00:03:55]} {[%emt
00:01:15]} Ke7 {[%clk 00:02:40]} {[%emt 00:00:08]} 83. Qc4 {[%clk 00:03:46]}
{[%emt 00:00:38]} Qc5+ {[%emt 00:01:50]} 84. Qxc5 {[%clk 00:03:49]} {[%emt
00:00:26]} dxc5 {[%clk 00:01:48]} {[%emt 00:00:04]} 85. Kc7 {[%clk 00:04:16]}
{[%emt 00:00:03]} c4 {[%clk 00:00:50]} {[%emt 00:01:28]} 86. d6 {[%emt
00:00:05]} Ke6 {[%clk 00:00:40]} {[%emt 00:00:39]} 87. d7 {[%clk 00:05:09]}
{[%emt 00:00:04]} e3 {[%clk 00:00:58]} {[%emt 00:00:13]} 88. d8=Q {[%clk
00:05:34]} {[%emt 00:00:04]} Kf5 {[%clk 00:01:17]} {[%emt 00:00:10]} 89. Qd5+
{[%clk 00:05:46]} {[%emt 00:00:18]} 1-0

[Event "Championship of RSO-Alania 2020"]
[Site "Vladikavkaz, Russia"]
[Date "2021.01.04"]
[Round "4.5"]
[White "Ryazanov, Nikolay"]
[Black "Koraev, Kazbek"]
[Result "1/2-1/2"]
[TimeControl "90+30"]
[WhiteElo "1788"]
[BlackElo "1755"]

1. e4 {[%clk 01:30:58]} {[%emt 00:00:01]} c5 {[%clk 01:30:16]} {[%emt
00:00:44]} 2. Nf3 {[%clk 01:31:13]} {[%emt 00:00:16]} d6 {[%clk 01:30:03]}
{[%emt 00:00:43]} 3. d4 {[%clk 01:30:15]} {[%emt 00:01:27]} cxd4 {[%clk
01:30:19]} {[%emt 00:00:14]} 4. Nxd4 {[%clk 01:30:44]} {[%emt 00:00:01]} Nf6
{[%clk 01:29:52]} {[%emt 00:00:57]} 5. Nc3 {[%clk 01:31:05]} {[%emt 00:00:09]}
a6 {[%clk 01:30:05]} {[%emt 00:00:18]} 6. Be2 {[%clk 01:31:07]} {[%emt
00:00:28]} e6 {[%clk 01:30:13]} {[%emt 00:00:22]} 7. Be3 {[%clk 01:31:28]}
{[%emt 00:00:08]} Be7 {[%clk 01:28:38]} {[%emt 00:02:05]} 8. O-O {[%clk
01:31:24]} {[%emt 00:00:33]} Qc7 {[%clk 01:26:43]} {[%emt 00:02:26]} 9. f4
{[%clk 01:30:33]} {[%emt 00:01:20]} Nc6 {[%clk 01:22:16]} {[%emt 00:04:58]} 10.
Bf3 {[%clk 01:29:37]} {[%emt 00:01:24]} Rb8 {[%clk 01:21:22]} {[%emt 00:01:24]}
11. a4 {[%clk 01:29:11]} {[%emt 00:00:57]} O-O {[%emt 00:04:18]} 12. Qe2 {[%emt
00:01:19]} Bd7 {[%clk 01:13:09]} {[%emt 00:03:06]} 13. Rad1 {[%clk 01:29:30]}
{[%emt 00:00:10]} Nxd4 {[%clk 01:09:13]} {[%emt 00:04:27]} 14. Bxd4 {[%clk
01:29:45]} {[%emt 00:00:15]} Bc6 {[%clk 01:08:58]} {[%emt 00:00:44]} 15. e5
{[%clk 01:27:37]} {[%emt 00:02:39]} Bxf3 {[%clk 01:03:28]} {[%emt 00:06:00]} 16.
Qxf3 {[%clk 01:27:45]} {[%emt 00:00:21]} Nd7 {[%clk 01:01:21]} {[%emt
00:02:37]} 17. exd6 {[%clk 01:24:46]} {[%emt 00:03:31]} Bxd6 {[%clk 01:01:03]}
{[%emt 00:00:46]} 18. Kh1 {[%clk 01:23:54]} {[%emt 00:01:22]} Bc5 {[%clk
01:00:25]} {[%emt 00:01:07]} 19. Bxc5 {[%clk 01:22:52]} {[%emt 00:01:34]} Nxc5
{[%clk 01:00:33]} {[%emt 00:00:22]} 20. f5 {[%clk 01:22:13]} {[%emt 00:01:09]}
exf5 {[%clk 00:59:22]} {[%emt 00:01:42]} 21. Qxf5 {[%clk 01:22:30]} {[%emt
00:00:12]} Qc8 {[%clk 00:58:23]} {[%emt 00:01:24]} 22. Qxc8 {[%clk 01:22:50]}
{[%emt 00:00:16]} Rbxc8 {[%clk 00:58:43]} {[%emt 00:00:09]} 23. Rd6 {[%clk
01:21:58]} {[%emt 00:01:21]} Rfd8 {[%emt 00:00:51]} 24. Rfd1 {[%emt 00:00:33]}
Rxd6 {[%clk 00:57:31]} {[%emt 00:00:20]} 25. Rxd6 {[%clk 01:22:21]} {[%emt
00:00:07]} Kf8 {[%clk 00:57:47]} {[%emt 00:00:13]} 26. Kg1 {[%clk 01:22:31]}
{[%emt 00:00:21]} Ke7 {[%clk 00:57:58]} {[%emt 00:00:19]} 27. Rd2 {[%clk
01:22:43]} {[%emt 00:00:16]} Rd8 {[%clk 00:57:05]} {[%emt 00:01:24]} 28. Re2+
{[%clk 01:22:52]} {[%emt 00:00:23]} Kd6 {[%clk 00:57:03]} {[%emt 00:00:30]} 29.
Rd2+ {[%clk 01:23:11]} {[%emt 00:00:12]} Ke7 {[%clk 00:57:23]} {[%emt
00:00:10]} 30. Re2+ {[%clk 01:23:31]} {[%emt 00:00:11]} Kd6 {[%clk 00:57:36]}
{[%emt 00:00:16]} 31. Rd2+ {[%emt 00:00:19]} Ke7 {[%clk 00:57:57]} {[%emt
00:00:06]} 32. Re2+ {[%clk 01:23:46]} {[%emt 00:00:29]} Kd6 {[%emt 00:00:12]}
33. Rd2+ 1/2-1/2

[Event "Championship of RSO-Alania 2020"]
[Site "Vladikavkaz, Russia"]
[Date "2021.01.04"]
[Round "4.6"]
[White "Edziev, Vladimir"]
[Black "Shkurupiy, Konstantin"]
[Result "0-1"]
[TimeControl "90+30"]
[WhiteElo "1478"]
[BlackElo "1592"]

1. d4 {[%clk 01:26:30]} {[%emt 00:04:29]} Nf6 {[%clk 01:30:54]} {[%emt
00:00:06]} 2. Nf3 {[%clk 01:26:59]} {[%emt 00:00:02]} g6 {[%clk 01:31:16]}
{[%emt 00:00:09]} 3. c4 {[%clk 01:27:20]} {[%emt 00:00:08]} c5 {[%clk
01:31:33]} {[%emt 00:00:13]} 4. Nc3 {[%clk 01:26:13]} {[%emt 00:01:37]} Bg7
{[%clk 01:31:52]} {[%emt 00:00:12]} 5. g3 {[%clk 01:26:37]} {[%emt 00:00:06]}
O-O {[%clk 01:31:41]} {[%emt 00:00:40]} 6. Bg2 {[%clk 01:27:01]} {[%emt
00:00:06]} a6 {[%clk 01:31:49]} {[%emt 00:00:23]} 7. O-O {[%clk 01:26:40]}
{[%emt 00:00:50]} cxd4 {[%clk 01:30:08]} {[%emt 00:02:11]} 8. Nxd4 {[%clk
01:26:54]} {[%emt 00:00:16]} Nc6 {[%clk 01:30:13]} {[%emt 00:00:26]} 9. Qd2
{[%clk 01:16:53]} {[%emt 00:10:31]} Qb6 {[%clk 01:28:36]} {[%emt 00:02:06]} 10.
Nc2 {[%clk 01:14:58]} {[%emt 00:02:25]} d6 {[%clk 01:27:41]} {[%emt 00:01:26]}
11. Rb1 {[%clk 01:12:16]} {[%emt 00:03:11]} Bd7 {[%clk 01:25:46]} {[%emt
00:02:25]} 12. b4 {[%clk 01:07:53]} {[%emt 00:04:53]} Rac8 {[%clk 01:22:14]}
{[%emt 00:04:01]} 13. Nd5 {[%clk 00:58:13]} {[%emt 00:10:11]} Nxd5 {[%clk
01:20:11]} {[%emt 00:02:33]} 14. cxd5 {[%clk 00:58:16]} {[%emt 00:00:27]} Ne5
{[%clk 01:19:45]} {[%emt 00:00:56]} 15. Ne3 {[%clk 00:57:42]} {[%emt 00:01:05]}
Nc4 {[%clk 01:17:47]} {[%emt 00:02:28]} 16. Nxc4 {[%clk 00:57:24]} {[%emt
00:00:47]} Rxc4 {[%clk 01:18:04]} {[%emt 00:00:13]} 17. Qe3 {[%clk 00:54:21]}
{[%emt 00:03:33]} Qxe3 {[%clk 01:16:45]} {[%emt 00:01:48]} 18. Bxe3 {[%clk
00:54:28]} {[%emt 00:00:23]} Rfc8 {[%clk 01:16:58]} {[%emt 00:00:17]} 19. Bf3
{[%clk 00:47:58]} {[%emt 00:07:01]} Bf5 {[%clk 01:11:13]} {[%emt 00:06:14]} 20.
Rbc1 {[%clk 00:47:30]} {[%emt 00:01:00]} Bb2 {[%clk 01:11:01]} {[%emt
00:00:41]} 21. Rxc4 {[%clk 00:47:05]} {[%emt 00:00:56]} Rxc4 {[%clk 01:11:28]}
{[%emt 00:00:03]} 22. b5 {[%clk 00:37:49]} {[%emt 00:09:45]} axb5 {[%clk
01:10:27]} {[%emt 00:01:31]} 23. Kg2 {[%clk 00:36:52]} {[%emt 00:01:27]} f6
{[%clk 01:08:18]} {[%emt 00:02:38]} 24. Rd1 {[%clk 00:32:54]} {[%emt 00:04:29]}
Kf7 {[%clk 01:08:01]} {[%emt 00:00:48]} 25. h3 {[%clk 00:32:46]} {[%emt
00:00:38]} h5 {[%clk 01:05:43]} {[%emt 00:02:48]} 26. g4 {[%clk 00:32:22]}
{[%emt 00:00:54]} hxg4 {[%clk 01:05:35]} {[%emt 00:00:37]} 27. Bxg4 {[%clk
00:32:29]} {[%emt 00:00:23]} Bxg4 {[%clk 01:05:51]} {[%emt 00:00:15]} 28. hxg4
Rxg4+ {[%emt 00:00:44]} 29. Kf3 {[%clk 00:32:14]} {[%emt 00:00:01]} Ra4 {[%clk
01:04:52]} {[%emt 00:01:29]} 30. Rd2 {[%clk 00:32:07]} {[%emt 00:00:37]} Bc1
{[%clk 01:03:42]} {[%emt 00:01:40]} 31. Rc2 {[%clk 00:32:23]} {[%emt 00:00:15]}
Bxe3 {[%clk 01:03:46]} {[%emt 00:00:25]} 32. Kxe3 {[%clk 00:32:50]} {[%emt
00:00:03]} Rc4 {[%clk 01:01:37]} {[%emt 00:02:40]} 33. Rxc4 {[%clk 00:28:21]}
{[%emt 00:04:59]} bxc4 {[%clk 00:57:57]} {[%emt 00:04:10]} 34. a4 {[%clk
00:28:49]} {[%emt 00:00:02]} e6 {[%clk 00:57:56]} {[%emt 00:00:31]} 35. dxe6+
{[%clk 00:29:07]} {[%emt 00:00:13]} Kxe6 {[%clk 00:58:24]} {[%emt 00:00:02]} 36.
Kd4 {[%clk 00:29:23]} {[%emt 00:00:14]} d5 {[%clk 00:58:40]} {[%emt 00:00:14]}
37. e4 {[%clk 00:25:42]} {[%emt 00:04:12]} c3 {[%clk 00:58:24]} {[%emt
00:00:46]} 38. Kxc3 {[%clk 00:24:43]} {[%emt 00:01:29]} dxe4 {[%clk 00:58:48]}
{[%emt 00:00:06]} 39. Kd4 {[%clk 00:25:12]} f5 {[%clk 00:56:43]} {[%emt
00:02:36]} 40. Kc5 {[%clk 00:25:41]} {[%emt 00:00:01]} g5 {[%clk 00:56:32]}
{[%emt 00:00:41]} 41. a5 {[%clk 00:23:36]} {[%emt 00:02:36]} e3 {[%clk
00:56:07]} {[%emt 00:00:54]} 42. fxe3 {[%clk 00:23:52]} {[%emt 00:00:14]} g4
{[%clk 00:56:22]} {[%emt 00:00:16]} 0-1

[Event "Championship of RSO-Alania 2020"]
[Site "Vladikavkaz, Russia"]
[Date "2021.01.05"]
[Round "5.1"]
[White "Hastsaev, Marat"]
[Black "Bogov, Khetag"]
[Result "1/2-1/2"]
[TimeControl "90+30"]
[WhiteElo "2007"]
[BlackElo "1263"]

1. e4 {[%emt 00:00:48]} c6 2. d4 d5 3. Nc3 {[%emt 00:00:34]} dxe4 {[%emt
00:00:05]} 4. Nxe4 {[%emt 00:00:02]} Nf6 {[%emt 00:00:02]} 5. Nxf6+ {[%emt
00:00:03]} exf6 {[%emt 00:00:05]} 6. Nf3 {[%emt 00:00:02]} Bg4 {[%emt
00:00:06]} 7. Bf4 {[%emt 00:00:02]} Be7 {[%emt 00:00:03]} 8. Be2 {[%emt
00:00:01]} O-O {[%emt 00:00:05]} 9. O-O {[%emt 00:00:02]} Nd7 {[%emt 00:00:02]}
10. c3 {[%emt 00:00:01]} Re8 {[%emt 00:00:03]} 11. Qc2 {[%emt 00:00:01]} Nf8
{[%emt 00:00:04]} 12. Rfe1 {[%emt 00:00:01]} Ng6 {[%emt 00:00:04]} 13. Bg3
{[%emt 00:00:01]} Bd6 {[%emt 00:00:05]} 14. Bxd6 {[%emt 00:00:01]} Qxd6 {[%emt
00:00:03]} 15. h3 {[%emt 00:00:02]} Bxf3 {[%emt 00:00:03]} 16. Bxf3 {[%emt
00:00:04]} Nh4 {[%emt 00:00:03]} 17. Be4 {[%emt 00:00:01]} Ng6 {[%emt
00:00:05]} 18. Bxg6 {[%emt 00:00:02]} hxg6 {[%emt 00:00:03]} 19. Re2 {[%emt
00:00:05]} Re7 {[%emt 00:00:02]} 20. Rae1 {[%emt 00:00:03]} Rae8 {[%emt
00:00:02]} 21. Qd3 {[%emt 00:00:03]} Rxe2 {[%emt 00:00:04]} 22. Rxe2 {[%emt
00:00:01]} Rxe2 {[%emt 00:00:05]} 23. Qxe2 Qe6 {[%emt 00:00:04]} 24. Qxe6
{[%emt 00:00:02]} fxe6 {[%emt 00:00:01]} 25. f4 {[%emt 00:00:03]} Kf7 {[%emt
00:00:03]} 26. Kf2 {[%emt 00:00:01]} Ke7 {[%emt 00:00:03]} 27. Ke3 {[%emt
00:00:01]} Kd6 {[%emt 00:00:02]} 28. Ke4 {[%emt 00:00:01]} b5 {[%emt 00:00:11]}
29. b3 {[%emt 00:00:01]} a6 {[%emt 00:00:03]} 30. a3 {[%emt 00:00:01]} c5
{[%emt 00:00:03]} 31. g4 {[%emt 00:00:02]} c4 {[%emt 00:00:03]} 32. bxc4 {[%emt
00:00:02]} bxc4 33. f5 {[%emt 00:00:03]} exf5+ {[%emt 00:00:03]} 34. gxf5
{[%emt 00:00:01]} g5 {[%emt 00:00:02]} 35. a4 {[%emt 00:00:01]} a5 {[%emt
00:00:02]} 36. d5 {[%emt 00:00:06]} Kc5 {[%emt 00:00:02]} 37. d6 {[%emt
00:00:02]} Kxd6 {[%emt 00:00:02]} 38. Kd4 {[%emt 00:00:01]} Ke7 {[%emt
00:00:05]} 39. Kxc4 {[%emt 00:00:01]} g6 {[%emt 00:00:07]} 40. fxg6 {[%emt
00:00:01]} f5 {[%emt 00:00:02]} 41. Kd4 {[%emt 00:00:15]} Kf6 {[%emt 00:00:57]}
42. c4 Kxg6 {[%emt 00:00:03]} 43. Ke5 f4 {[%emt 00:00:05]} 44. Ke4 Kf6 {[%emt
00:00:03]} 45. h4 {[%emt 00:00:01]} gxh4 {[%emt 00:00:02]} 46. Kxf4 {[%emt
00:00:02]} Ke6 {[%emt 00:00:03]} 47. Kg4 {[%emt 00:00:02]} Kd6 {[%emt
00:00:02]} 48. Kxh4 {[%emt 00:00:02]} Kc5 {[%emt 00:00:04]} 49. Kg4 {[%emt
00:00:02]} Kb4 {[%emt 00:00:19]} 50. Kf4 {[%emt 00:00:01]} Kxa4 {[%emt
00:00:06]} 51. Ke4 {[%emt 00:00:04]} Kb4 {[%emt 00:00:04]} 52. Kd5 {[%emt
00:00:02]} a4 {[%emt 00:00:01]} 53. c5 a3 54. c6 a2 55. c7 {[%emt 00:00:02]}
a1=Q {[%emt 00:00:03]} 56. c8=Q {[%emt 00:00:03]} 1/2-1/2

[Event "Championship of RSO-Alania 2020"]
[Site "Vladikavkaz, Russia"]
[Date "2021.01.05"]
[Round "5.2"]
[White "Dryaeva, Lana"]
[Black "Agkatsev, Felix A"]
[Result "1-0"]
[TimeControl "90+30"]
[WhiteElo "1404"]
[BlackElo "1338"]

1. d4 {[%emt 00:00:33]} Nf6 {[%emt 00:00:02]} 2. c4 {[%emt 00:00:03]} e6 {[%emt
00:00:02]} 3. Nc3 {[%emt 00:00:02]} b6 {[%emt 00:00:05]} 4. Qc2 {[%emt
00:00:02]} Bb7 {[%emt 00:00:05]} 5. e4 {[%emt 00:00:01]} Bb4 {[%clk 01:29:18]}
{[%emt 00:00:08]} 6. Bd3 d5 {[%emt 00:00:15]} 7. cxd5 {[%emt 00:00:04]} exd5
{[%emt 00:00:04]} 8. e5 {[%emt 00:00:01]} Nfd7 {[%emt 00:00:03]} 9. a3 {[%emt
00:00:02]} Bxc3+ {[%emt 00:00:05]} 10. bxc3 {[%emt 00:00:03]} h6 {[%emt
00:00:04]} 11. Ne2 {[%emt 00:00:02]} c5 {[%emt 00:00:04]} 12. O-O {[%emt
00:00:03]} Nc6 {[%emt 00:00:04]} 13. f4 {[%emt 00:00:01]} Qc7 {[%emt 00:00:03]}
14. a4 {[%emt 00:00:02]} c4 {[%emt 00:00:06]} 15. Bf5 {[%emt 00:00:02]} O-O-O
{[%emt 00:00:05]} 16. Ba3 {[%emt 00:00:02]} Na5 {[%emt 00:00:07]} 17. Bd6
{[%emt 00:00:02]} Qc6 {[%emt 00:00:03]} 18. Nc1 {[%emt 00:00:01]} Ba6 {[%emt
00:00:05]} 19. Na2 {[%emt 00:00:02]} Rde8 {[%emt 00:00:07]} 20. Nb4 {[%emt
00:00:05]} Qb7 {[%emt 00:00:04]} 21. Bg4 {[%emt 00:00:02]} Nb3 {[%emt
00:00:09]} 22. Ra2 {[%emt 00:00:03]} Re6 {[%emt 00:00:11]} 23. Bxe6 {[%emt
00:00:02]} fxe6 {[%emt 00:00:02]} 24. Qg6 Kd8 {[%emt 00:00:07]} 25. Qxe6 {[%emt
00:00:03]} Re8 {[%emt 00:00:03]} 26. Qxd5 {[%emt 00:00:03]} Qxd5 {[%emt
00:00:02]} 27. Nxd5 {[%emt 00:00:03]} Bb7 {[%emt 00:00:03]} 28. Nc7 {[%emt
00:00:01]} Rg8 {[%emt 00:00:03]} 29. f5 {[%emt 00:00:03]} Be4 {[%emt 00:00:07]}
30. f6 {[%emt 00:00:02]} gxf6 {[%emt 00:00:03]} 31. exf6 {[%emt 00:00:02]} Rg6
{[%emt 00:00:02]} 32. Ne6+ {[%emt 00:00:02]} Kc8 {[%emt 00:00:06]} 33. Be7
{[%emt 00:00:03]} Bd3 {[%emt 00:00:05]} 34. Rff2 {[%emt 00:00:21]} Nc1 {[%emt
00:00:06]} 35. Rab2 {[%emt 00:00:03]} Ne2+ {[%emt 00:00:03]} 36. Rbxe2 {[%emt
00:00:04]} Bxe2 {[%emt 00:00:02]} 37. Rxe2 {[%emt 00:00:02]} Nxf6 {[%emt
00:00:06]} 38. Nf4 {[%emt 00:00:02]} Rg4 {[%emt 00:00:02]} 39. Bxf6 {[%emt
00:00:05]} Rxf4 {[%emt 00:00:02]} 40. Be5 {[%emt 00:00:02]} Rg4 {[%emt
00:00:07]} 41. h3 Rg8 {[%emt 00:00:17]} 42. Rf2 {[%emt 00:00:01]} Kb7 {[%emt
00:00:03]} 43. Rf7+ Ka6 {[%emt 00:00:02]} 44. Bd6 {[%emt 00:00:03]} h5 {[%emt
00:00:03]} 45. Kf2 {[%emt 00:00:01]} Rd8 {[%emt 00:00:04]} 46. Bb4 {[%emt
00:00:01]} Rd5 {[%emt 00:00:04]} 47. g4 hxg4 {[%emt 00:00:02]} 48. hxg4 Rg5
{[%emt 00:00:03]} 49. Kf3 Rg8 {[%emt 00:00:03]} 50. Kf4 Rh8 {[%emt 00:00:06]}
51. g5 {[%emt 00:00:02]} Rh1 {[%emt 00:00:01]} 52. g6 {[%emt 00:00:01]} Rf1+
{[%emt 00:00:02]} 53. Ke5 {[%emt 00:00:02]} Rg1 {[%emt 00:00:03]} 54. Kf6
{[%emt 00:00:01]} Rf1 {[%emt 00:00:02]} 55. Kg7 {[%emt 00:00:01]} Rg1 {[%emt
00:00:03]} 56. Kh7 {[%emt 00:00:02]} Rh1+ {[%emt 00:00:02]} 57. Kg8 Rg1 {[%emt
00:00:03]} 58. g7 Rg2 {[%emt 00:00:07]} 59. Kf8 {[%emt 00:00:05]} Rg1 {[%emt
00:00:01]} 60. g8=Q {[%emt 00:00:07]} Rg6 {[%emt 00:00:02]} 61. Rxa7+ {[%emt
00:00:02]} 1-0